fUSD/lending_fUSD_20240921
["ID","MTS","AMOUNT","RATE_DAILY","PERIOD"]
[338690482,1726878639097,-151.0,0.00013,2]
[338690484,1726878639106,-279.798064,0.00013,2]
[338690486,1726878639115,-517.156411,0.00013,2]
[338690488,1726878639124,-201.183697,0.00013,2]
[338690490,1726878639134,-279.798064,0.00013,2]
[338690492,1726878639143,-578.673959,0.00013,2]
[338690494,1726878639152,-235.500409,0.00013,2]
[338690496,1726878639161,-578.673959,0.00013,2]
[338690498,1726878639171,-151.0,0.00013,2]
[338690500,1726878639180,-151.0,0.00013,2]
[338690501,1726878639190,-151.0,0.00013,2]
[338690503,1726878639199,-272.767334,0.00013,2]
[338690505,1726878639208,-272.767334,0.00013,2]
[338690507,1726878639218,-2000.0,0.00013,2]
[338690509,1726878639227,-200.0,0.00013,2]
[338690511,1726878639236,-886.14,0.00013,2]
[338690513,1726878639245,-327.02854861,0.00013,2]
[338690516,1726878639256,-2000.0,0.00013,2]
[338690518,1726878639266,-200.0,0.00013,2]
[338690519,1726878639275,-1100.0,0.00013,2]
[338690522,1726878639284,-148861.70463551,0.00013,2]
[338690525,1726878639306,-4156.4123412,0.00013,2]
[338690527,1726878639318,-1508.20205936,0.00013,2]
[338690529,1726878639329,-1031.66794064,0.00013,2]
[338690531,1726878639340,-8761.63231516,0.00013,2]
[338690533,1726878639351,-453.10592507,0.00013,2]
[338690537,1726878639378,-758.11221771,0.00013,2]
[338690539,1726878639389,-339.1733676,0.00013,2]
[338690541,1726878639401,-1203.88782761,0.00013,2]
[338690544,1726878639413,-782.42871167,0.00013,2]
[338690546,1726878639424,-1200.0,0.00013,2]
[338690548,1726878639435,-851.88368412,0.00013,2]
[338690550,1726878639448,-1044.71571817,0.00013,2]
[338690553,1726878639464,-705.3146958,0.00013,2]
[338690591,1726878639794,-1147.0,0.00012991,2]
[338690593,1726878639803,-1427.51413355,0.00013,2]
[338690597,1726878639829,-851.15923326,0.00013,2]
[338690599,1726878639841,-900.65208622,0.00013,2]
[338690601,1726878639852,-706.86050022,0.00013,2]
[338690603,1726878639863,-1073.59111442,0.00013,2]
[338690607,1726878639886,-3419.99457149,0.00013,2]
[338690609,1726878639897,-330.82850883,0.00013,2]
[338690611,1726878639908,-123503.86474464,0.00013,2]
[338690613,1726878639919,-334265.85193283,0.00013,2]
[338690617,1726878639941,-1703.23587765,0.00013,2]
[338690621,1726878639967,-3604.6581534,0.00013,2]
[338690623,1726878639979,-1214.79818361,0.00013,2]
[338691002,1726878643458,-1052.81181451,0.0001274,2]
[338691005,1726878643475,-978163.44723411,0.00013,2]
[338691031,1726878643714,-428169.61086019,0.00013,2]
[338691033,1726878643725,-310.08,0.00013,2]
[338691035,1726878643734,-195.36801594,0.00013,2]
[338691037,1726878643744,-1011.58,0.00013,2]
[338691039,1726878643753,-2000.0,0.00013,2]
[338691041,1726878643763,-439870.09592036,0.00013,2]
[338691044,1726878643775,-511.59482619,0.00013,2]
[338691049,1726878643818,-24214.52440842,0.00013,2]
[338691052,1726878643832,-1056.06830296,0.00013,2]
[338691251,1726878645805,-25730.99999983,0.00013,2]
[338691272,1726878646003,-716.66464331,0.00013,2]
[338691276,1726878646027,-47267.43512627,0.00013,2]
[338691288,1726878646137,-940.87063428,0.00013,2]
[338692665,1726878696913,9635.59,0.00011951,2]
[338692666,1726878753295,23900.0,0.00011857,2]
[338692668,1726878867362,160.11,0.00010959,2]
[338692670,1726878901230,542.84,0.00012019,2]
[338692671,1726878903128,23075.86579516,0.00011604,2]
[338692673,1726879020181,7630.56489214,0.00011604,2]
[338692674,1726879043437,5875.045459,0.00012004,2]
[338692675,1726879087298,613.69,0.00012019,2]
[338692676,1726879110805,500.0,0.00011164,2]
[338692677,1726879124651,840.0,0.00011836,2]
[338692678,1726879137537,307.15,0.0001018,2]
[338692679,1726879181849,250.0,0.00012019,2]
[338692680,1726879221330,400.0,0.00011604,2]
[338692681,1726879337318,500.0,0.00011164,2]
[338692682,1726879347014,500.0,0.00011164,2]
[338692683,1726879393098,14125.72125558,0.00012019,2]
[338692684,1726879412514,7630.56489214,0.00011604,2]
[338692685,1726879431395,201.77269143,0.00011995,2]
[338692686,1726879433186,168.23,0.00010959,2]
[338692688,1726879453831,5800.0,0.00011604,2]
[338692689,1726879476616,5800.0,0.00011595,2]
[338692690,1726879500595,5800.0,0.00011587,2]
[338692692,1726879614686,450.0,0.00012009,2]
[338692693,1726879633106,-267.23,0.00012046,2]
[338692694,1726879633128,-325.28209483,0.00012065,2]
[338692695,1726879711203,500.0,0.00011164,2]
[338692697,1726879740298,250.0,0.00012005,2]
[338692698,1726879753035,201.77269143,0.00011946,2]
[338692699,1726879802571,150.0,0.00011946,2]
[338692700,1726879802771,201.586603,0.00011946,2]
[338692701,1726879819395,6019.2095,0.00011965,2]
[338692702,1726879825555,8911.6625,0.00011946,2]
[338692710,1726879832428,-150.0,0.00012043,2]
[338692711,1726879832438,-161.515,0.00012046,2]
[338692712,1726879832456,-210.985,0.00012046,2]
[338692713,1726879832466,-227.99482347,0.00012046,2]
[338692714,1726879832494,-1265.98517653,0.00012046,2]
[338692715,1726879832503,-244.17133778,0.00012046,2]
[338692716,1726879832514,-344.40721085,0.00012046,2]
[338692717,1726879832543,-411.42145137,0.00012046,2]
[338692718,1726879832552,-45.87024942,0.00012065,2]
[338692722,1726879837997,-914.81898883,0.00012065,2]
[338692723,1726879838009,-515.37635187,0.00012065,2]
[338692724,1726879838020,-7054.92231505,0.00012065,2]
[338692725,1726879838029,-258.4,0.00012073,2]
[338692726,1726879838038,-250.0,0.00012095,2]
[338692727,1726879838047,-2715.52,0.00012095,2]
[338692728,1726879838056,-250.0,0.00012101,2]
[338692729,1726879838066,-231.27,0.00012119,2]
[338692730,1726879838075,-150.0,0.00012411,2]
[338692731,1726879838084,-307.15,0.00012444,2]
[338692732,1726879838093,-201.99,0.00012445,2]
[338692733,1726879838102,-1052.58,0.0001264,2]
[338692734,1726879838111,-499.99,0.0001264,2]
[338692735,1726879838121,-150.0,0.00012738,2]
[338692736,1726879838130,-1074.02867082,0.0001274,2]
[338692737,1726879838139,-1500.0,0.00012741,2]
[338692738,1726879838148,-1500.0,0.00012746,2]
[338692739,1726879838157,-150.0,0.00012754,2]
[338692740,1726879838176,-150.0,0.00012768,2]
[338692741,1726879838185,-150.0,0.00012768,2]
[338692742,1726879838194,-150.0,0.00012769,2]
[338692743,1726879838203,-150.0,0.00012771,2]
[338692744,1726879838212,-1500.0,0.00012772,2]
[338692745,1726879838221,-1500.0,0.00012775,2]
[338692746,1726879838230,-1456.56944414,0.00012792,2]
[338692747,1726879838239,-134.7595936,0.00012796,2]
[338692749,1726879838402,-15.2404064,0.00012796,2]
[338692751,1726879838412,-150.0,0.00012809,2]
[338692753,1726879838420,-150.0,0.00012816,2]
[338692755,1726879838429,-764.10869533,0.00012818,2]
[338692758,1726879838450,-735.89130467,0.00012818,2]
[338692760,1726879838459,-146.70869533,0.00012852,2]
[338692762,1726879838470,-796.44791203,0.00012852,2]
[338692766,1726879838480,-556.84339264,0.00012852,2]
[338692767,1726879838488,-150.0,0.00012858,2]
[338692769,1726879838496,-1500.0,0.00012868,2]
[338692771,1726879838504,-150.0,0.00012876,2]
[338692773,1726879838512,-500.0,0.00012896,2]
[338692775,1726879838521,-200.0,0.00012896,2]
[338692777,1726879838530,-1026.3821,0.000129,2]
[338692779,1726879838538,-150.0,0.000129,2]
[338692781,1726879838546,-154.87143131,0.000129,2]
[338692783,1726879838555,-327.966,0.000129,2]
[338692785,1726879838563,-7754.52116105,0.000129,2]
[338692787,1726879838574,-3743.59954969,0.000129,2]
[338692788,1726879838582,-309.70922117,0.000129,2]
[338692790,1726879838590,-150.0,0.00012927,2]
[338692792,1726879838599,-1500.0,0.00012931,2]
[338692794,1726879838607,-150.0,0.00012931,2]
[338692796,1726879838616,-150.0,0.00012943,2]
[338692797,1726879838625,-150.0,0.00012948,2]
[338692799,1726879838633,-150.0,0.00012961,2]
[338692801,1726879838642,-1500.0,0.00012967,2]
[338692803,1726879838651,-1500.0,0.00012972,2]
[338692805,1726879838661,-1000.0,0.00012986,2]
[338692807,1726879838670,-150.0,0.00012989,2]
[338692809,1726879838679,-152.76,0.0001299,2]
[338692811,1726879838688,-1500.0,0.0001299,2]
[338692812,1726879838696,-2341.4278056,0.00012994,2]
[338692814,1726879838705,-8.16403354,0.00012999,2]
[338692816,1726879838715,-170.79405351,0.00012999,2]
[338692818,1726879838724,-280.15967564,0.00012999,2]
[338692821,1726879838742,-1719.84032436,0.00012999,2]
[338692823,1726879838750,-9920.91995465,0.00013,2]
[338692825,1726879838763,-618.75914436,0.00013,2]
[338692827,1726879838774,-2243.70523742,0.00013,2]
[338692830,1726879838785,-3060.15071266,0.00013,2]
[338692832,1726879838800,-1572.34103835,0.00013,2]
[338692834,1726879838811,-5200.0,0.00013,2]
[338692837,1726879838823,-30540.72750238,0.00013,2]
[338692840,1726879838844,-13978.90000243,0.00013,2]
[338692842,1726879838856,-48971.44647162,0.00013,2]
[338692844,1726879838867,-434.31452562,0.00013,2]
[338692953,1726879840011,-5184.20181618,0.00013,2]
[338692972,1726879840194,-2578.26365097,0.00013,2]
[338692974,1726879840205,-2531.9271258,0.00013,2]
[338692976,1726879840216,-84827.94702213,0.00013,2]
[338692978,1726879840228,-38671.39032521,0.00013,2]
[338692981,1726879840247,-1661.96238067,0.00013,2]
[338692983,1726879840258,-1262.25643233,0.00013,2]
[338693285,1726879843274,-2615.23792211,0.00013,2]
[338693288,1726879843290,-239549.62659884,0.00013,2]
[338693290,1726879843301,-962922.37340131,0.00013,2]
[338693293,1726879843321,-1002.76073025,0.00013,2]
[338693296,1726879843340,-17419.3005666,0.00013,2]
[338693298,1726879843350,-797.53,0.00013,2]
[338693300,1726879843361,-151.0,0.00013,2]
[338693302,1726879843370,-20453.37,0.00013,2]
[338693304,1726879843379,-600.011374,0.00013,2]
[338693306,1726879843389,-600.011374,0.00013,2]
[338693308,1726879843399,-151.0,0.00013,2]
[338693310,1726879843408,-200.0,0.00013,2]
[338693312,1726879843417,-2000.0,0.00013,2]
[338693313,1726879843427,-200.0,0.00013,2]
[338693315,1726879843436,-317.7,0.00013,2]
[338693317,1726879843445,-8612.379,0.00013,2]
[338693319,1726879843455,-218.02993336,0.00013,2]
[338693321,1726879843464,-999.26,0.00013,2]
[338693323,1726879843474,-2000.0,0.00013,2]
[338693325,1726879843484,-200.0,0.00013,2]
[338693327,1726879843494,-29849.26761885,0.00013,2]
[338693329,1726879843503,-2000.0,0.00013,2]
[338693331,1726879843513,-200.0,0.00013,2]
[338693333,1726879843523,-13406.7979344,0.00013003,2]
[338693335,1726879843532,-767.053348,0.00013012,2]
[338693337,1726879843542,-383.526674,0.0001303,2]
[338693339,1726879843552,-1262.0,0.00013088,2]
[338693341,1726879843562,-625.0,0.00013088,2]
[338693343,1726879843573,-1549.0,0.00013088,2]
[338693345,1726879843583,-448.0,0.00013088,2]
[338693347,1726879843592,-932.0,0.00013088,2]
[338693349,1726879843602,-150.0,0.00013088,2]
[338693351,1726879843611,-809.0,0.00013088,2]
[338693353,1726879843620,-558.0,0.00013088,2]
[338693355,1726879843630,-208.066,0.00013088,2]
[338693357,1726879843639,-1966.526,0.00013088,2]
[338693359,1726879843650,-553.0,0.00013088,2]
[338693361,1726879843659,-1913.0,0.00013088,2]
[338693363,1726879843669,-248.0,0.00013088,2]
[338693365,1726879843679,-806.0,0.00013088,2]
[338693367,1726879843689,-3346.0,0.00013088,2]
[338693368,1726879843698,-5866.0,0.00013088,2]
[338693370,1726879843708,-1147.0,0.00013088,2]
[338693372,1726879843718,-13489.0,0.00013088,2]
[338693374,1726879843727,-150.0,0.00013088,2]
[338693376,1726879843737,-150.0,0.00013088,2]
[338693378,1726879843747,-267.921,0.00013088,2]
[338693380,1726879843757,-1035.0,0.00013088,2]
[338693382,1726879843767,-150.0,0.00013088,2]
[338693384,1726879843777,-150.0,0.000131,2]
[338693386,1726879843786,-11498.12071069,0.00013122,2]
[338693387,1726879843796,-200.0,0.0001313,2]
[338693389,1726879843809,-2000.0,0.0001313,2]
[338693391,1726879843819,-200.0,0.0001313,2]
[338693393,1726879843833,-2000.0,0.0001313,2]
[338693395,1726879843842,-200.0,0.0001313,2]
[338693397,1726879843853,-900.15868864,0.0001313,2]
[338693399,1726879843863,-200.0,0.0001313,2]
[338693401,1726879843872,-150.0,0.000132,2]
[338693403,1726879843882,-388.0,0.00013236,2]
[338693405,1726879843891,-200.0,0.00013261,2]
[338693407,1726879843901,-2000.0,0.00013261,2]
[338693409,1726879843911,-200.0,0.00013261,2]
[338693411,1726879843920,-2000.0,0.00013261,2]
[338693413,1726879843930,-200.0,0.00013261,2]
[338693415,1726879843939,-200.0,0.00013261,2]
[338693416,1726879843948,-151.0,0.00013284,2]
[338693418,1726879843957,-388.91,0.0001329,2]
[338693420,1726879843967,-896.0,0.00013301,2]
[338693422,1726879843977,-150.0,0.00013338,2]
[338693424,1726879843987,-150.0,0.00013338,2]
[338693426,1726879843997,-150.803,0.00013338,2]
[338693428,1726879844007,-150.0,0.00013342,2]
[338693430,1726879844019,-150.0,0.00013342,2]
[338693433,1726879844035,-150.0,0.00013342,2]
[338693436,1726879844052,-150.0,0.00013342,2]
[338693439,1726879844071,-150.0,0.00013342,2]
[338693442,1726879844090,-300.36,0.00013342,2]
[338693445,1726879844109,-11498.12071069,0.00013344,2]
[338693447,1726879844125,-200.0,0.00013394,2]
[338693450,1726879844145,-2000.0,0.00013394,2]
[338693452,1726879844160,-200.0,0.00013394,2]
[338693455,1726879844179,-200.0,0.00013394,2]
[338693458,1726879844198,-359.0,0.000134,2]
[338693461,1726879844213,-1000.0,0.000134,2]
[338693463,1726879844228,-227.0,0.000134,2]
[338693466,1726879844245,-958.0,0.000134,2]
[338693469,1726879844264,-309.70922114,0.000134,2]
[338693471,1726879844278,-350.6814027,0.00013471,2]
[338693474,1726879844293,-200.0,0.00013528,2]
[338693477,1726879844312,-200.0,0.00013528,2]
[338693480,1726879844328,-200.0,0.00013528,2]
[338693482,1726879844343,-267.23,0.00013551,2]
[338693485,1726879844360,-1000.0,0.00013551,2]
[338693487,1726879844376,-292.93,0.00013559,2]
[338693490,1726879844393,-11498.12071069,0.00013567,2]
[338693493,1726879844408,-240.247971,0.000136,2]
[338693495,1726879844424,-2675.92,0.00013661,7]
[338693498,1726879844440,-2675.92,0.00013661,7]
[338693500,1726879844455,-2675.92,0.00013661,7]
[338693503,1726879844471,-2675.92,0.00013661,7]
[338693505,1726879844487,-500.0,0.00013699,2]
[338693508,1726879844502,-500.0,0.00013699,2]
[338693510,1726879844518,-500.0,0.00013699,2]
[338693513,1726879844532,-500.0,0.00013699,2]
[338693515,1726879844548,-500.0,0.00013699,2]
[338693518,1726879844564,-2000.0,0.00013699,2]
[338693520,1726879844580,-2000.0,0.00013699,2]
[338693523,1726879844595,-2000.0,0.00013699,2]
[338693525,1726879844610,-2000.0,0.00013699,2]
[338693528,1726879844625,-2000.0,0.00013699,2]
[338693530,1726879844641,-2000.0,0.00013699,2]
[338693533,1726879844657,-2000.0,0.00013699,2]
[338693536,1726879844677,-2000.0,0.00013699,2]
[338693538,1726879844692,-2000.0,0.00013699,2]
[338693540,1726879844707,-2000.0,0.00013699,2]
[338693542,1726879844723,-500.0,0.00013699,2]
[338693544,1726879844738,-500.0,0.00013699,2]
[338693546,1726879844753,-500.0,0.00013699,2]
[338693548,1726879844768,-500.0,0.00013699,2]
[338693550,1726879844784,-1501.69,0.00013699,2]
[338693552,1726879844799,-31016.09,0.00013699,2]
[338693554,1726879844813,-500.0,0.00013699,2]
[338693557,1726879844832,-2751.0,0.00013699,2]
[338693559,1726879844847,-200.0,0.00013699,2]
[338693561,1726879844861,-150.0,0.00013699,2]
[338693563,1726879844877,-47884.33,0.00013699,2]
[338693565,1726879844891,-1250.0,0.000137,2]
[338693567,1726879844906,-155.0,0.0001373,2]
[338693570,1726879844929,-350.6814027,0.00013757,2]
[338693572,1726879844944,-388.91,0.0001376,2]
[338693574,1726879844959,-11778.87987303,0.00013761,2]
[338693576,1726879844975,-11498.12071069,0.00013789,2]
[338693579,1726879844990,-209.0,0.0001379,2]
[338693581,1726879845004,-11534.0691119,0.00013791,2]
[338693583,1726879845019,-151.0,0.000138,2]
[338693584,1726879845036,-151.0,0.000138,2]
[338693586,1726879845051,-151.0,0.000138,2]
[338693588,1726879845065,-151.0,0.000138,2]
[338693590,1726879845081,-151.0,0.000138,2]
[338693592,1726879845096,-600.011374,0.000138,2]
[338693594,1726879845111,-600.011374,0.000138,2]
[338693596,1726879845126,-151.0,0.000138,2]
[338693599,1726879845141,-187.26848234,0.00013804,2]
[338693601,1726879845156,-2000.0,0.00013821,2]
[338693603,1726879845172,-500.0,0.00013873,2]
[338693605,1726879845187,-160.79967198,0.00013873,2]
[338693608,1726879845202,-500.0,0.00013873,2]
[338693610,1726879845217,-203.52738512,0.00013873,2]
[338693612,1726879845232,-508.10099561,0.00013873,2]
[338693614,1726879845246,-5624.00402058,0.0001389,7]
[338693617,1726879845269,-592.83688994,0.0001389,7]
[338693687,1726879846130,-2004.1416721,0.0001389,7]
[338693689,1726879846140,-2045.9924461,0.0001389,2]
[338693691,1726879846149,-161.10659508,0.00013899,2]
[338693692,1726879846161,-338.89340492,0.00013899,2]
[338693694,1726879846171,-300.0,0.00013899,2]
[338693696,1726879846180,-300.0,0.00013899,2]
[338693698,1726879846189,-300.0,0.00013899,2]
[338693700,1726879846198,-2485.51651379,0.000139,2]
[338693702,1726879846209,-4081.23469195,0.000139,2]
[338693703,1726879846218,-279.798064,0.000139,2]
[338693705,1726879846228,-279.798064,0.000139,2]
[338693707,1726879846238,-154.87143131,0.000139,2]
[338693709,1726879846247,-151.0,0.000139,2]
[338693711,1726879846257,-534.50552,0.000139,2]
[338693713,1726879846266,-546.89596,0.000139,2]
[338693714,1726879846275,-534.50552,0.000139,2]
[338693716,1726879846285,-151.0,0.000139,2]
[338693718,1726879846294,-546.89596,0.000139,2]
[338693720,1726879846303,-151.0,0.000139,2]
[338693722,1726879846312,-1161.62889,0.000139,2]
[338693723,1726879846321,-1161.62889,0.000139,2]
[338693725,1726879846331,-407.872144,0.000139,2]
[338693727,1726879846340,-407.872144,0.000139,2]
[338693729,1726879846349,-551.622085,0.000139,2]
[338693730,1726879846359,-551.622085,0.000139,2]
[338693732,1726879846368,-310.895856,0.000139,2]
[338693734,1726879846378,-310.895856,0.000139,2]
[338693736,1726879846388,-892.265982,0.000139,2]
[338693738,1726879846397,-151.0,0.000139,2]
[338693740,1726879846407,-892.265982,0.000139,2]
[338693741,1726879846417,-151.0,0.000139,2]
[338693743,1726879846426,-151.0,0.000139,2]
[338693745,1726879846436,-290.843158,0.000139,2]
[338693747,1726879846446,-151.0,0.000139,2]
[338693749,1726879846455,-187.433074,0.000139,2]
[338693750,1726879846465,-250.57095,0.000139,2]
[338693752,1726879846474,-250.57095,0.000139,2]
[338693754,1726879846484,-34239.70674272,0.000139,2]
[338693756,1726879846499,-5295.7,0.000139,2]
[338693758,1726879846511,-49930.33746883,0.000139,2]
[338693766,1726879846612,-830.00744661,0.000139,2]
[338693767,1726879846624,-721.62621433,0.000139,2]
[338693768,1726879846734,-311.36819876,0.000139,2]
[338694478,1726879854360,1050.0,0.00011,2]
[338694653,1726879875422,309.55,0.00011159,2]
[338694654,1726879883621,500.0,0.00011164,2]
[338694655,1726879915338,500.0,0.00011164,2]
[338694656,1726879957734,2337.845,0.00011965,2]
[338694657,1726879997516,400.0,0.00011604,2]
[338694658,1726880048504,248.61,0.00010959,2]
[338694661,1726880251573,200.0,0.000153,120]
[338694662,1726880349854,500.0,0.00011164,2]
[338694663,1726880388535,500.0,0.00011164,2]
[338694664,1726880439033,5800.0,0.00011604,2]
[338694665,1726880461895,5800.0,0.00011595,2]
[338694666,1726880484742,5800.0,0.00011587,2]
[338694667,1726880490027,500.0,0.00011164,2]
[338694668,1726880505964,324.64,0.00010435,2]
[338694669,1726880508489,5800.0,0.00011578,2]
[338694670,1726880589768,500.0,0.00011164,2]
[338694671,1726880643373,153.08,0.00010959,2]
[338694673,1726880686872,186.19535894,0.00011164,2]
[338694675,1726880778798,400.0,0.00011604,2]
[338694676,1726880842135,-396.44,0.00012269,2]
[338694677,1726880842158,-2047.45784693,0.00012323,2]
[338694678,1726880870743,500.0,0.00011164,2]
[338694681,1726881032079,-588.0,0.00012169,2]
[338694682,1726881032088,-155.30413884,0.00012236,2]
[338694683,1726881032098,-355.93215307,0.00012323,2]
[338694684,1726881032108,-150.0,0.00012336,2]
[338694685,1726881032118,-407.84,0.00012343,2]
[338694686,1726881032128,-600.0,0.00012368,2]
[338694687,1726881032138,-250.0,0.00012369,2]
[338694688,1726881032148,-157.37,0.00012394,2]
[338694689,1726881032158,-157.37,0.000124,2]
[338694690,1726881032168,-157.37,0.00012406,2]
[338694691,1726881032177,-400.0,0.0001241,2]
[338694692,1726881032187,-157.37,0.00012412,2]
[338694693,1726881032197,-157.37,0.00012419,2]
[338694694,1726881032207,-157.37,0.00012425,2]
[338694695,1726881032218,-157.37,0.00012431,2]
[338694696,1726881032227,-157.37,0.00012437,2]
[338694697,1726881032237,-157.37,0.00012443,2]
[338694698,1726881032246,-157.37,0.0001245,2]
[338694699,1726881032255,-157.37,0.00012456,2]
[338694700,1726881032266,-800.25571588,0.00012509,2]
[338694701,1726881032276,-324.64,0.00012699,2]
[338694702,1726881032285,-466.78,0.00012716,2]
[338694703,1726881032294,-1442.97192416,0.00012722,2]
[338694704,1726881032307,-80.22807584,0.00012722,2]
[338694705,1726881032317,-170.1,0.00012758,2]
[338694706,1726881032327,-300.0,0.00012878,2]
[338694707,1726881032336,-150.0,0.00012878,2]
[338694708,1726881032348,-300.0,0.00012878,2]
[338694709,1726881032357,-567.04890964,0.00012879,2]
[338694710,1726881032426,-312.84406266,0.00012879,2]
[338694711,1726881032461,-52.1070277,0.00012879,2]
[338694712,1726881032470,-558.0,0.00012879,2]
[338694713,1726881032480,-281.89844127,0.00012879,2]
[338694714,1726881032491,-527.10155873,0.00012879,2]
[338694715,1726881032501,-553.0,0.00012879,2]
[338694716,1726881032510,-1344.84275753,0.00012879,2]
[338694717,1726881032523,-558.15724247,0.00012879,2]
[338694718,1726881032532,-806.0,0.00012879,2]
[338694719,1726881032542,-1913.0,0.00012879,2]
[338694720,1726881032552,-260.155,0.00012879,2]
[338694721,1726881032562,-3346.0,0.00012879,2]
[338694722,1726881032571,-14758.24,0.000129,2]
[338694723,1726881032581,-11567.3854,0.000129,2]
[338694724,1726881032592,-167.9434,0.000129,2]
[338694725,1726881032602,-3923.2349,0.000129,2]
[338694726,1726881032611,-9815.175,0.000129,2]
[338694727,1726881032621,-5866.0,0.00012951,2]
[338694728,1726881032631,-150.0,0.00012951,2]
[338694729,1726881032640,-13489.0,0.00012951,2]
[338694730,1726881032650,-1147.0,0.00012951,2]
[338694731,1726881032660,-428.9,0.00012973,2]
[338694732,1726881032669,-184.13,0.00012973,2]
[338694733,1726881032678,-1000.0,0.00012986,2]
[338694734,1726881032689,-2270.5831475,0.00012999,2]
[338694735,1726881032699,-500.0,0.00012999,2]
[338694736,1726881032709,-500.0,0.00012999,2]
[338694737,1726881032718,-500.0,0.00012999,2]
[338694738,1726881032728,-500.0,0.00012999,2]
[338694739,1726881032738,-500.0,0.00012999,2]
[338694740,1726881032749,-500.0,0.00012999,2]
[338694741,1726881032761,-500.0,0.00012999,2]
[338694742,1726881032772,-500.0,0.00012999,2]
[338694743,1726881032782,-500.0,0.00012999,2]
[338694744,1726881032792,-500.0,0.00012999,2]
[338694745,1726881032804,-500.0,0.00012999,2]
[338694746,1726881032815,-500.0,0.00012999,2]
[338694747,1726881032824,-500.0,0.00012999,2]
[338694748,1726881032834,-500.0,0.00012999,2]
[338694749,1726881032844,-500.0,0.00012999,2]
[338694750,1726881032853,-500.0,0.00012999,2]
[338694751,1726881032863,-500.0,0.00012999,2]
[338694752,1726881032872,-500.0,0.00012999,2]
[338694753,1726881032881,-500.0,0.00012999,2]
[338694754,1726881032892,-500.0,0.00012999,2]
[338694755,1726881032901,-500.0,0.00012999,2]
[338694756,1726881032911,-500.0,0.00012999,2]
[338694757,1726881032920,-500.0,0.00012999,2]
[338694758,1726881032930,-192.77,0.00012999,2]
[338694759,1726881032940,-757.94,0.00013,2]
[338694760,1726881032950,-1427.51413355,0.00013,2]
[338694761,1726881032959,-601.111324,0.00013,2]
[338694762,1726881032969,-1001.08,0.00013,2]
[338694763,1726881032978,-150.0,0.00013178,2]
[338694764,1726881032987,-229.876,0.00013178,2]
[338694765,1726881032997,-262.444,0.00013178,2]
[338694766,1726881033006,-1549.0,0.00013178,2]
[338694767,1726881033016,-625.0,0.00013178,2]
[338694768,1726881033026,-1262.0,0.00013178,2]
[338694769,1726881033036,-448.0,0.00013178,2]
[338694770,1726881033047,-192.0,0.0001329,2]
[338694771,1726881033057,-796.0,0.00013301,2]
[338694772,1726881033067,-151.0,0.00013365,2]
[338694773,1726881033077,-299.17704059,0.00013389,2]
[338694774,1726881033087,-242.45825038,0.00013389,2]
[338694775,1726881033098,-184.20907282,0.00013389,2]
[338694776,1726881033108,-196.0,0.00013389,2]
[338694777,1726881033118,-359.0,0.000136,2]
[338694778,1726881033127,-1000.0,0.000136,2]
[338694779,1726881033137,-227.0,0.000136,2]